[Event "22nd Hoogeveen Open 2018"]
[Site "Hoogeveen"]
[Date "2018.10.23"]
[Round "5"]
[White "Bleeker, Kasper"]
[Black "De Vries, Emma"]
[Result "0-1"]
[ECO "C03"]
[WhiteElo "1891"]
[BlackElo "1905"]
[Annotator "NA"]
[PlyCount "70"]
[EventDate "2018.10.20"]
[EventType "swiss"]
[EventCountry "NED"]
[SourceTitle "playchess.com"]
[Source "ChessBase"]
[SourceQuality "1"]
[TimeControl "40/5400+30:1800+30"]

1. e4 {[%emt 0:00:00]} e6 {[%emt 0:00:00]} 2. d4 {[%emt 0:00:00]} d5 {[%emt 0:00:00]} 3. Bd3 {[%emt 0:00:00]} c5 {[%emt 0:00:00]} 4. exd5 {[%emt 0:00:00]} exd5 {[%emt 0:00:00]} 5. Nf3 {[%emt 0:00:02]} Nf6 {[%emt 0:00:00]} 6. O-O {[%emt 0:00:10]} Be7 {[%emt 0:00:11]} 7. dxc5 {[%emt 0:00:05]} Bxc5 {[%emt 0:00:39]} 8. Nbd2 {[%emt 0:00:15]} O-O {[%emt 0:01:11] LiveBook: 40 Games} 9. Nb3 {[%emt 0:00:31]} Bd6 {[%emt 0:01:37]} 10. h3 {[%emt 0:01:39]} Nc6 {[%emt 0:04:44]} 11. Bg5 {[%emt 0:01:24]} h6 {[%emt 0:04:47]} 12. Bh4 $11 {[%emt 0:09:22]} Nb4 {[%emt 0:06:02]} 13. Nbd4 {[%emt 0:04:37]} Nxd3 {[%emt 0:03:00]} 14. Qxd3 {[%emt 0:01:19]} Bd7 {[%emt 0:26:09]} 15. Rae1 {[%emt 0:02:00]} Be7 {[%emt 0:09:17]} 16. Re5 {[%emt 0:05:18]} Bc6 {[%emt 0:04:47]} 17. Rfe1 {[%emt 0:01:32]} Bd6 {[%emt 0:02:52]} 18. Rf5 {[%emt 0:05:41]} Be7 {[%emt 0:02:18]} 19. Ne5 {[%emt 0:16:52]} Qc7 {[%emt 0:07:44]} 20. Ng4 {[%emt 0:33:48]} Nxg4 {[%emt 0:11:24]} 21. Bxe7 {[%emt 0:11:05]} Qh2+ {[%emt 0:01:57]} 22. Kf1 {[%emt 0:00:05]} Rae8 {[%emt 0:01:28]} 23. Qa3 {[%emt 0:03:30]} g6 {[%emt 0:05:31]} 24. Rf3 {[%emt 0:00:55]} Ne5 {[%emt 0:02:02]} 25. Rg3 {[%emt 0:00:52]} Nc4 {[%emt 0:00:40]} 26. Qb4 {[%emt 0:01:23]} a5 {[%emt 0:00:30]} 27. Qc5 {[%emt 0:00:26]} b6 {[%emt 0:00:24]} 28. Qxc6 {[%emt 0:00:44]} Qh1+ {[%emt 0:00:30]} 29. Ke2 {[%emt 0:00:00]} Rxe7+ {[%emt 0:00:07]} 30. Kd3 {[%emt 0:00:08]} Qxe1 {[%emt 0:01:11]} 31. Rxg6+ {[%emt 0:01:03]} fxg6 {[%emt 0:00:10]} 32. Qxd5+ {[%emt 0:00:09]} Kg7 {[%emt 0:00:57]} 33. Kxc4 {[%emt 0:00:32]} Qe4 {[%emt 0:01:43]} 34. Qd6 {[%emt 0:00:33]} Rff7 {[%emt 0:00:50]} 35. Kb3 {[%emt 0:00:20]} Qe5 {[%emt 0:00:55]} 0-1

[Event "22nd Hoogeveen Open 2018"]
[Site "Hoogeveen"]
[Date "2018.10.23"]
[Round "5"]
[White "Kutchoukov, Daniel"]
[Black "Hoffman, Ron"]
[Result "1/2-1/2"]
[ECO "B00"]
[WhiteElo "1882"]
[BlackElo "2060"]
[Annotator "NA"]
[PlyCount "82"]
[EventDate "2018.10.20"]
[EventType "swiss"]
[EventCountry "NED"]
[SourceTitle "playchess.com"]
[Source "ChessBase"]
[SourceQuality "1"]
[TimeControl "40/5400+30:1800+30"]

1. e4 {[%emt 0:00:00]} Nc6 {[%emt 0:00:00]} 2. Nf3 {[%emt 0:00:04]} d6 {[%emt 0:00:10]} 3. d4 {[%emt 0:00:22]} Nf6 {[%emt 0:02:34]} 4. d5 {[%emt 0:02:56]} Nb8 {[%emt 0:00:31]} 5. Bd3 {[%emt 0:03:32]} g6 {[%emt 0:00:44]} 6. c4 {[%emt 0:07:02]} Bg7 {[%emt 0:03:15]} 7. Nc3 {[%emt 0:03:19]} O-O {[%emt 0:00:29] LiveBook: 4 Games} 8. h3 {[%emt 0:09:39]} a5 {[%emt 0:03:54]} 9. Be3 {[%emt 0:00:59]} Na6 {[%emt 0:05:59]} 10. O-O $14 {[%emt 0:06:54]} Nc5 {[%emt 0:05:18]} 11. Bxc5 {[%emt 0:16:38]} dxc5 {[%emt 0:00:35]} 12. e5 {[%emt 0:00:19]} Ne8 {[%emt 0:15:19]} 13. Qe2 {[%emt 0:17:56]} e6 {[%emt 0:12:41]} 14. Rad1 {[%emt 0:03:01]} Qe7 {[%emt 0:02:16]} 15. Rfe1 {[%emt 0:04:43]} b6 {[%emt 0:02:47]} 16. Nd2 {[%emt 0:16:20]} Bb7 {[%emt 0:02:48]} 17. f4 {[%emt 0:00:56]} Qh4 {[%emt 0:13:16]} 18. Qe3 {[%emt 0:02:58]} Bh6 {[%emt 0:02:43]} 19. g3 {[%emt 0:01:13]} Qe7 {[%emt 0:02:53]} 20. Nf3 {[%emt 0:00:34]} Rd8 {[%emt 0:01:15]} 21. Be4 {[%emt 0:00:18]} Ba8 {[%emt 0:01:08]} 22. g4 {[%emt 0:00:23]} Bg7 {[%emt 0:07:46]} 23. Kf2 {[%emt 0:00:30]} f6 {[%emt 0:02:18]} 24. dxe6 {[%emt 0:00:47]} Rxd1 {[%emt 0:01:00]} 25. Rxd1 {[%emt 0:00:17]} Bxe4 {[%emt 0:00:18]} 26. Qxe4 {[%emt 0:00:32]} fxe5 {[%emt 0:01:02]} 27. Nxe5 {[%emt 0:00:46]} Qxe6 {[%emt 0:03:07]} 28. Nd3 {[%emt 0:00:29]} Qxe4 {[%emt 0:04:19]} 29. Nxe4 {[%emt 0:00:01]} Nf6 {[%emt 0:00:05]} 30. Ng5 {[%emt 0:00:51]} Rd8 {[%emt 0:01:00]} 31. Ne6 {[%emt 0:00:37]} Rd7 {[%emt 0:00:01]} 32. Nxg7 {[%emt 0:00:32]} Kxg7 {[%emt 0:00:02]} 33. Ke2 {[%emt 0:00:19]} Rd4 {[%emt 0:00:20]} 34. b3 {[%emt 0:00:35]} Ne4 {[%emt 0:00:45]} 35. Rc1 {[%emt 0:00:33]} Kf6 {[%emt 0:01:20]} 36. Rc2 {[%emt 0:00:25]} h5 {[%emt 0:00:44]} 37. Ke3 {[%emt 0:00:37]} Nd6 {[%emt 0:02:00]} 38. Ne5 {[%emt 0:00:30]} g5 {[%emt 0:00:45]} 39. Nd3 {[%emt 0:00:30]} hxg4 {[%emt 0:01:12]} 40. hxg4 {[%emt 0:00:10]} Re4+ {[%emt 0:00:49]} 41. Kf3 {[%emt 0:30:26]} Rd4 {[%emt 0:03:48] Ke4 [%emt 00:24:58] Ke5+ [%emt 00:00:01]} 1/2-1/2

[Event "22nd Hoogeveen Open 2018"]
[Site "Hoogeveen"]
[Date "2018.10.23"]
[Round "5"]
[White "Husers, Yannic"]
[Black "Biermann, Lenhard"]
[Result "0-1"]
[ECO "C03"]
[WhiteElo "1866"]
[BlackElo "2153"]
[Annotator "NA"]
[PlyCount "58"]
[EventDate "2018.10.20"]
[EventType "swiss"]
[EventCountry "NED"]
[SourceTitle "playchess.com"]
[Source "ChessBase"]
[SourceQuality "1"]
[TimeControl "40/5400+30:1800+30"]

1. e4 {[%emt 0:00:00]} e6 {[%emt 0:00:00]} 2. d4 {[%emt 0:00:00]} d5 {[%emt 0:00:00]} 3. Nd2 {[%emt 0:00:00]} h6 {[%emt 0:00:00]} 4. Bd3 {[%emt 0:01:53]} c5 {[%emt 0:00:44]} 5. c3 {[%emt 0:00:30]} cxd4 {[%emt 0:01:14]} 6. cxd4 {[%emt 0:00:08]} dxe4 {[%emt 0:00:06]} 7. Nxe4 {[%emt 0:00:16]} Bb4+ {[%emt 0:00:06]} 8. Nc3 {[%emt 0:01:35]} Nc6 {[%emt 0:00:20]} 9. Nge2 {[%emt 0:01:14]} Nf6 {[%emt 0:00:52]} 10. O-O {[%emt 0:01:03]} O-O {[%emt 0:00:41]} 11. a3 {[%emt 0:06:06]} Be7 {[%emt 0:04:13]} 12. b4 {[%emt 0:05:09]} b6 {[%emt 0:03:27]} 13. Ra2 {[%emt 0:06:05]} Nd5 {[%emt 0:16:01]} (13... Bb7 $15) 14. Ne4 {[%emt 0:11:01]} Bb7 {[%emt 0:09:26]} 15. Bb1 $15 {[%emt 0:14:00]} f5 {[%emt 0:07:05]} 16. N4g3 {[%emt 0:00:50]} Nc7 {[%emt 0:08:17]} 17. Qd3 {[%emt 0:05:56]} Qd5 {[%emt 0:10:54]} 18. Rd2 {[%emt 0:12:14]} Nxb4 {[%emt 0:10:18]} 19. Nf4 {[%emt 0:01:47]} Nxd3 {[%emt 0:00:21]} 20. Nxd5 {[%emt 0:00:12]} Nxd5 {[%emt 0:00:20]} 21. Bxd3 {[%emt 0:00:24]} Nf4 {[%emt 0:06:35]} 22. Bc4 {[%emt 0:01:51]} Nxg2 {[%emt 0:04:23]} 23. Bxe6+ {[%emt 0:00:36]} Kh8 {[%emt 0:00:07]} 24. Nxf5 {[%emt 0:00:49]} Bg5 {[%emt 0:04:09]} 25. Rdd1 {[%emt 0:05:28]} Bxc1 {[%emt 0:00:42]} 26. Rxc1 {[%emt 0:00:09]} Nf4 {[%emt 0:00:57]} 27. d5 {[%emt 0:02:51]} Nxe6 {[%emt 0:00:26]} 28. Ne7 {[%emt 0:01:22]} Nf4 {[%emt 0:02:23]} 29. Rc7 {[%emt 0:00:18]} Bxd5 {[%emt 0:01:03]} 0-1

[Event "22nd Hoogeveen Open 2018"]
[Site "Hoogeveen"]
[Date "2018.10.23"]
[Round "5"]
[White "Brands, Kevin"]
[Black "Verhoef, Pieter"]
[Result "1/2-1/2"]
[ECO "B90"]
[WhiteElo "1862"]
[BlackElo "2058"]
[Annotator "NA"]
[PlyCount "134"]
[EventDate "2018.10.20"]
[EventType "swiss"]
[EventCountry "NED"]
[SourceTitle "playchess.com"]
[Source "ChessBase"]
[SourceQuality "1"]
[TimeControl "40/5400+30:1800+30"]

1. e4 {[%emt 0:00:00]} c5 {[%emt 0:00:00]} 2. Nf3 {[%emt 0:00:00]} d6 {[%emt 0:00:00]} 3. d4 {[%emt 0:00:00]} cxd4 {[%emt 0:00:00]} 4. Nxd4 {[%emt 0:00:00]} Nf6 {[%emt 0:00:00]} 5. Nc3 {[%emt 0:00:00]} a6 {[%emt 0:00:00]} 6. Be3 {[%emt 0:00:00]} e5 {[%emt 0:00:03]} 7. Nb3 {[%emt 0:00:00]} Be6 {[%emt 0:00:06]} 8. f3 {[%emt 0:00:02]} Be7 {[%emt 0:00:09]} 9. Qd2 {[%emt 0:00:03]} h5 {[%emt 0:00:06]} 10. Nd5 {[%emt 0:01:05]} Nxd5 {[%emt 0:00:09]} 11. exd5 {[%emt 0:00:02]} Bf5 {[%emt 0:00:10]} 12. c4 {[%emt 0:04:39]} Nd7 {[%emt 0:00:25]} 13. Bd3 {[%emt 0:10:18]} Bxd3 {[%emt 0:03:28]} 14. Qxd3 {[%emt 0:00:05]} Bh4+ {[%emt 0:00:07]} 15. Bf2 {[%emt 0:05:43]} Bxf2+ {[%emt 0:00:29]} 16. Kxf2 {[%emt 0:00:05]} Rc8 {[%emt 0:00:46]} 17. Rac1 {[%emt 0:00:43]} Qh4+ {[%emt 0:09:01]} 18. g3 {[%emt 0:00:59]} Qf6 $11 {[%emt 0:00:17]} 19. Nd2 {[%emt 0:08:14]} Nc5 {[%emt 0:03:41]} 20. Qe3 {[%emt 0:00:50]} a5 {[%emt 0:00:28]} 21. Ne4 {[%emt 0:00:22]} Nxe4+ {[%emt 0:00:23]} 22. Qxe4 {[%emt 0:00:04]} O-O {[%emt 0:04:43]} 23. Rhg1 {[%emt 0:09:06]} Qe7 {[%emt 0:02:28]} 24. b3 {[%emt 0:14:55]} f5 {[%emt 0:01:36]} 25. Qh4 {[%emt 0:00:11]} Qxh4 {[%emt 0:08:27]} 26. gxh4 {[%emt 0:00:29]} Kf7 {[%emt 0:00:07]} 27. Ke3 {[%emt 0:03:36]} g6 {[%emt 0:00:20]} 28. f4 {[%emt 0:02:21]} Rfe8 {[%emt 0:00:35]} 29. Rce1 {[%emt 0:02:31]} a4 {[%emt 0:02:52]} 30. fxe5 {[%emt 0:05:38]} Rxe5+ {[%emt 0:00:14]} 31. Kf2 {[%emt 0:03:20]} Kf6 {[%emt 0:05:38]} 32. Rxe5 {[%emt 0:02:04]} dxe5 {[%emt 0:00:07]} 33. Rc1 {[%emt 0:02:07]} e4 {[%emt 0:01:01]} 34. c5 {[%emt 0:02:58]} Ke5 {[%emt 0:00:55]} 35. d6 {[%emt 0:00:50]} axb3 {[%emt 0:06:29]} 36. axb3 {[%emt 0:00:03]} Ra8 {[%emt 0:02:15]} 37. Rd1 {[%emt 0:05:07]} Ke6 {[%emt 0:00:52]} 38. Rd2 {[%emt 0:00:55]} Kd7 {[%emt 0:00:52]} 39. b4 {[%emt 0:02:10]} Ra3 {[%emt 0:01:58]} 40. Rc2 {[%emt 0:02:13]} Rb3 {[%emt 0:01:30]} 41. Rc4 {[%emt 0:31:15]} Ra3 {[%emt 0:39:48]} 42. b5 {[%emt 0:07:58]} Ra8 {[%emt 0:02:23]} 43. Ke3 {[%emt 0:00:33]} b6 {[%emt 0:00:24]} 44. cxb6 {[%emt 0:00:44]} Kxd6 {[%emt 0:00:15]} 45. Rc6+ {[%emt 0:00:04]} Ke5 {[%emt 0:00:25]} 46. Rc5+ {[%emt 0:01:24]} Kd6 {[%emt 0:01:08]} 47. Rc6+ {[%emt 0:00:21]} Kd5 {[%emt 0:00:09]} 48. Rxg6 {[%emt 0:01:24]} Ke5 {[%emt 0:00:15]} 49. b7 {[%emt 0:02:23]} f4+ {[%emt 0:01:24]} 50. Ke2 {[%emt 0:03:25]} Rf8 {[%emt 0:00:31]} 51. Rg5+ {[%emt 0:00:00]} Kd4 {[%emt 0:00:00]} 52. Rf5 {[%emt 0:00:00]} f3+ {[%emt 0:00:00]} 53. Kf2 {[%emt 0:00:00]} e3+ {[%emt 0:00:00]} 54. Kf1 {[%emt 0:00:00]} e2+ {[%emt 0:00:00]} 55. Kf2 {[%emt 0:00:00]} Re8 {[%emt 0:00:00]} 56. Ke1 {[%emt 0:00:00]} Ke3 {[%emt 0:00:00]} 57. Rf7 {[%emt 0:00:00]} Rd8 {[%emt 0:00:00]} 58. Re7+ {[%emt 0:00:00]} Kd3 {[%emt 0:00:00]} 59. Rf7 {[%emt 0:00:00]} Ke3 {[%emt 0:00:00]} 60. Re7+ {[%emt 0:00:00]} Kf4 {[%emt 0:00:00]} 61. Rd7 {[%emt 0:00:00]} Rg8 {[%emt 0:00:00]} 62. Rf7+ {[%emt 0:00:00]} Ke3 {[%emt 0:00:00]} 63. Re7+ {[%emt 0:00:00]} Kd3 {[%emt 0:00:00]} 64. Kf2 {[%emt 0:00:00]} Rf8 {[%emt 0:00:00]} 65. Rd7+ {[%emt 0:00:00]} Kc4 {[%emt 0:00:00]} 66. Re7 {[%emt 0:00:27]} Kd3 {[%emt 0:00:00]} 67. Rd7+ {[%emt 0:00:17]} Ke4 {[%emt 0:00:00]} 1/2-1/2

[Event "22nd Hoogeveen Open 2018"]
[Site "Hoogeveen"]
[Date "2018.10.23"]
[Round "5"]
[White "Achuthan, Dylan"]
[Black "Emans, Job"]
[Result "0-1"]
[ECO "C14"]
[WhiteElo "1751"]
[BlackElo "1927"]
[Annotator "NA"]
[PlyCount "64"]
[EventDate "2018.10.20"]
[EventType "swiss"]
[EventCountry "NED"]
[SourceTitle "playchess.com"]
[Source "ChessBase"]
[SourceQuality "1"]
[TimeControl "40/5400+30:1800+30"]

1. e4 {[%emt 0:00:00]} e6 {[%emt 0:00:00]} 2. d4 {[%emt 0:00:00]} d5 {[%emt 0:00:00]} 3. Nc3 {[%emt 0:00:04]} Nf6 {[%emt 0:00:00]} 4. Bg5 {[%emt 0:00:12]} Be7 {[%emt 0:00:03]} 5. e5 {[%emt 0:00:17]} Nfd7 {[%emt 0:00:06]} 6. h4 {[%emt 0:00:43]} a6 {[%emt 0:01:53]} 7. Qg4 {[%emt 0:03:07]} h5 {[%emt 0:01:53]} 8. Qg3 {[%emt 0:07:39]} g6 {[%emt 0:00:58] LiveBook: 7 Games} 9. O-O-O {[%emt 0:02:19]} c5 {[%emt 0:00:49]} 10. dxc5 {[%emt 0:07:43]} Nxc5 {[%emt 0:04:36]} 11. Nh3 {[%emt 0:12:34]} Nc6 {[%emt 0:05:47]} 12. f3 {[%emt 0:05:35]} b5 {[%emt 0:03:26]} 13. Nf2 {[%emt 0:01:44]} Qc7 {[%emt 0:10:00]} 14. Bxe7 $15 {[%emt 0:02:49]} Qxe7 {[%emt 0:02:58]} 15. Nd3 {[%emt 0:06:02]} Bb7 {[%emt 0:07:25]} 16. Be2 {[%emt 0:11:03]} Rc8 {[%emt 0:02:26]} 17. Nf4 {[%emt 0:14:34]} d4 {[%emt 0:05:00]} 18. Nb1 {[%emt 0:04:52]} Nb4 {[%emt 0:04:19]} 19. Na3 {[%emt 0:06:33]} Nxa2+ {[%emt 0:15:23]} 20. Kb1 {[%emt 0:00:08]} Nc3+ {[%emt 0:02:30]} 21. Ka1 {[%emt 0:00:42]} Nxd1 {[%emt 0:00:38]} 22. Rxd1 {[%emt 0:00:02]} d3 {[%emt 0:01:22]} 23. Bxd3 {[%emt 0:01:31]} Nxd3 {[%emt 0:00:24]} 24. Rxd3 {[%emt 0:03:08]} Bd5 {[%emt 0:04:39]} 25. Rxd5 {[%emt 0:07:13]} exd5 {[%emt 0:00:05]} 26. Nxd5 {[%emt 0:00:07]} Qd8 {[%emt 0:00:24]} 27. Nf6+ {[%emt 0:00:49]} Kf8 {[%emt 0:00:06]} 28. Qf4 {[%emt 0:00:51]} Kg7 {[%emt 0:01:12]} 29. Ne4 {[%emt 0:00:35]} Qe7 {[%emt 0:02:14]} 30. Qg3 {[%emt 0:00:47]} b4 {[%emt 0:00:25]} 31. Nd6 {[%emt 0:00:30]} Qd7 {[%emt 0:00:33]} 32. Nxc8 {[%emt 0:00:47]} Rxc8 {[%emt 0:00:03]} 0-1

[Event "22nd Hoogeveen Open 2018"]
[Site "Hoogeveen"]
[Date "2018.10.23"]
[Round "5"]
[White "Boghossian, Wahe"]
[Black "Van de Pavoordt, Max"]
[Result "1/2-1/2"]
[ECO "C02"]
[WhiteElo "1748"]
[BlackElo "2034"]
[Annotator "NA"]
[PlyCount "89"]
[EventDate "2018.10.20"]
[EventType "swiss"]
[EventCountry "NED"]
[SourceTitle "playchess.com"]
[Source "ChessBase"]
[SourceQuality "1"]
[TimeControl "40/5400+30:1800+30"]

1. e4 {[%emt 0:00:00]} e6 {[%emt 0:00:00]} 2. d4 {[%emt 0:00:00]} d5 {[%emt 0:00:00]} 3. e5 {[%emt 0:00:01]} c5 {[%emt 0:00:00]} 4. c3 {[%emt 0:00:06]} Nc6 {[%emt 0:00:00]} 5. Nf3 {[%emt 0:00:06]} Qb6 {[%emt 0:00:22]} 6. Na3 {[%emt 0:09:50]} Bd7 {[%emt 0:05:35]} 7. Nc2 {[%emt 0:01:51] LiveBook: 14 Games} Rc8 $11 {[%emt 0:01:12]} 8. a3 {[%emt 0:14:46]} cxd4 {[%emt 0:01:54]} 9. Ncxd4 {[%emt 0:07:01]} Nxd4 {[%emt 0:01:04]} 10. Nxd4 {[%emt 0:05:32]} Ne7 {[%emt 0:01:45]} 11. Qb3 {[%emt 0:20:27]} Qxb3 {[%emt 0:03:40]} 12. Nxb3 {[%emt 0:00:02]} Ba4 {[%emt 0:02:36]} 13. Nd4 {[%emt 0:01:26]} Nc6 {[%emt 0:01:23]} 14. Nxc6 {[%emt 0:00:47]} bxc6 {[%emt 0:00:24]} 15. Be3 {[%emt 0:03:51]} Bb3 {[%emt 0:08:32]} 16. Bxa7 {[%emt 0:04:44]} c5 {[%emt 0:02:38]} 17. a4 {[%emt 0:00:39]} Ra8 {[%emt 0:01:51]} 18. Bb6 {[%emt 0:00:21]} c4 {[%emt 0:00:40]} 19. a5 {[%emt 0:00:22]} Kd7 {[%emt 0:00:26]} 20. Be2 {[%emt 0:00:30]} Be7 {[%emt 0:01:03]} 21. Bd4 {[%emt 0:02:32]} Ra6 {[%emt 0:00:47]} 22. O-O {[%emt 0:00:24]} Rha8 {[%emt 0:00:49]} 23. f4 {[%emt 0:04:07]} g6 {[%emt 0:01:55]} 24. g4 {[%emt 0:00:40]} Rxa5 {[%emt 0:01:09]} 25. Rxa5 {[%emt 0:01:55]} Rxa5 {[%emt 0:00:02]} 26. Bd1 {[%emt 0:01:45]} Bxd1 {[%emt 0:01:28]} 27. Rxd1 {[%emt 0:00:02]} Rb5 {[%emt 0:00:12]} 28. Rd2 {[%emt 0:00:44]} Kc6 {[%emt 0:00:55]} 29. Kf2 {[%emt 0:02:27]} Ra5 {[%emt 0:00:06]} 30. Ke2 {[%emt 0:02:31]} Ra1 {[%emt 0:01:01]} 31. Rd1 {[%emt 0:00:55]} Ra2 {[%emt 0:00:04]} 32. Rd2 {[%emt 0:00:18]} Kb5 {[%emt 0:00:19]} 33. Kd1 {[%emt 0:01:55]} Ka4 {[%emt 0:00:06]} 34. f5 {[%emt 0:03:46]} gxf5 {[%emt 0:01:22]} 35. gxf5 {[%emt 0:00:10]} Kb3 {[%emt 0:01:02]} 36. fxe6 {[%emt 0:01:16]} fxe6 {[%emt 0:02:06]} 37. Rg2 {[%emt 0:00:55]} Ra1+ {[%emt 0:02:02]} 38. Kd2 {[%emt 0:01:03]} h6 {[%emt 0:01:25]} 39. Rg6 {[%emt 0:03:34]} Bg5+ {[%emt 0:00:05]} 40. Ke2 {[%emt 0:00:23]} Ra6 {[%emt 0:01:03]} 41. h4 {[%emt 0:30:59]} Bxh4 {[%emt 0:30:42]} 42. Rxh6 {[%emt 0:00:13]} Bg3 {[%emt 0:00:45]} 43. Kf3 {[%emt 0:00:00]} Be1 {[%emt 0:00:00]} 44. Ke2 {[%emt 0:00:00]} Bg3 {[%emt 0:00:00]} 45. Kf3 {[%emt 0:00:00]} 1/2-1/2

[Event "22nd Hoogeveen Open 2018"]
[Site "Hoogeveen"]
[Date "2018.10.24"]
[Round "6"]
[White "Colijn, Stefan"]
[Black "Elgersma, Simon"]
[Result "1-0"]
[ECO "A15"]
[WhiteElo "2340"]
[BlackElo "2237"]
[Annotator "NA"]
[PlyCount "51"]
[EventDate "2018.10.20"]
[EventType "swiss"]
[EventCountry "NED"]
[SourceTitle "playchess.com"]
[Source "ChessBase"]
[SourceQuality "1"]
[TimeControl "40/5400+30:1800+30"]

1. Nf3 {[%emt 0:00:29]} Nf6 {[%emt 0:00:00]} 2. c4 {[%emt 0:00:09]} g6 {[%emt 0:01:41]} 3. b3 {[%emt 0:00:09]} Bg7 {[%emt 0:02:03]} 4. Bb2 {[%emt 0:00:01]} d6 {[%emt 0:00:42]} 5. g3 {[%emt 0:00:48]} e5 {[%emt 0:04:43]} 6. Bg2 {[%emt 0:01:36]} O-O {[%emt 0:01:47]} 7. O-O {[%emt 0:00:28]} Re8 {[%emt 0:05:02]} 8. Nc3 {[%emt 0:01:32]} Nc6 {[%emt 0:03:18]} 9. d3 {[%emt 0:05:27] LiveBook: 27 Games} Bd7 {[%emt 0:10:56] A15: Englisch gegen Königs-Fianchetto} (9... h6 10. Rc1 Be6 11. d4 e4 12. d5 exf3 13. exf3 Bf5 14. dxc6 bxc6 15. c5 d5 16. Ne2 h5 17. h4 {1-0 (68) Grischuk,A (2779)-Mamedov,R (2637) Khanty-Mansiysk 2013}) 10. h3 {[%emt 0:06:47]} Qc8 $146 {[%emt 0:05:35]} ({Vorgänger:} 10... Qe7 11. e3 a5 12. a3 Qd8 13. Kh2 e4 14. Ne1 exd3 15. Nxd3 Bf5 16. Nf4 h5 17. Qd2 {1-0 (39) Kan,I-Dus Chotimirsky,F Moscow (Russia) 1939}) 11. Kh2 {[%emt 0:08:39]} Ne7 {[%emt 0:08:40]} 12. Rc1 {[%emt 0:06:03]} Nf5 {[%emt 0:02:45]} 13. e4 {[%emt 0:10:30]} Ne7 {[%emt 0:10:19]} 14. d4 {[%emt 0:06:02]} Nc6 {[%emt 0:02:31]} 15. dxe5 {[%emt 0:12:55]} dxe5 {[%emt 0:01:27]} 16. Re1 {[%emt 0:00:08]} h5 {[%emt 0:10:48]} 17. Qd2 {[%emt 0:03:13]} Nd4 {[%emt 0:02:40]} 18. Nxe5 {[%emt 0:03:02]} h4 {[%emt 0:06:11]} 19. Nd5 {[%emt 0:07:38]} hxg3+ {[%emt 0:03:05]} 20. fxg3 {[%emt 0:02:23]} c5 {[%emt 0:02:28]} 21. Nd3 {[%emt 0:08:11]} Nxd5 {[%emt 0:01:55]} 22. cxd5 $18 {[%emt 0:01:50]} ({Not} 22. exd5 Qc7 $16) 22... Bxh3 {[%emt 0:01:09]} 23. Rxc5 {[%emt 0:03:38]} Qg4 {[%emt 0:08:12]} 24. Bxd4 {[%emt 0:03:38]} Bxg2 {[%emt 0:00:59]} 25. Nf2 {[%emt 0:00:35]} Qf3 {[%emt 0:02:12]} 26. Rc3 {[%emt 0:00:07]} 1-0

[Event "22nd Hoogeveen Open 2018"]
[Site "Hoogeveen"]
[Date "2018.10.24"]
[Round "6"]
[White "Bertholee, Rob"]
[Black "Giacomini, Hector"]
[Result "1/2-1/2"]
[ECO "D42"]
[WhiteElo "2334"]
[BlackElo "2178"]
[Annotator "NA"]
[PlyCount "79"]
[EventDate "2018.10.20"]
[EventType "swiss"]
[EventCountry "NED"]
[SourceTitle "playchess.com"]
[Source "ChessBase"]
[SourceQuality "1"]
[TimeControl "40/5400+30:1800+30"]

1. e4 {[%emt 0:00:00]} c6 {[%emt 0:00:00]} 2. d4 {[%emt 0:00:00]} d5 {[%emt 0:00:00]} 3. exd5 {[%emt 0:00:00]} cxd5 {[%emt 0:00:00]} 4. c4 {[%emt 0:00:00]} Nf6 {[%emt 0:00:00]} 5. Nc3 {[%emt 0:00:00]} e6 {[%emt 0:00:00]} 6. Nf3 {[%emt 0:00:00]} Be7 {[%emt 0:00:00]} 7. cxd5 {[%emt 0:00:00]} Nxd5 {[%emt 0:00:01]} 8. Bd3 {[%emt 0:00:00]} Nc6 {[%emt 0:00:06]} 9. O-O {[%emt 0:00:03]} O-O {[%emt 0:00:03]} 10. Re1 {[%emt 0:00:05]} Bf6 {[%emt 0:00:06]} 11. Be4 {[%emt 0:00:10]} Nce7 {[%emt 0:00:05]} 12. Qd3 {[%emt 0:00:04]} h6 {[%emt 0:00:09]} 13. Ne5 {[%emt 0:00:11]} Bd7 $146 {[%emt 0:00:22] D42: Queen's Gambit Declined: Semi-Tarrasch: 5 cxd5 Nxd5 6 e3 Nc6 7 Bd3} (13... Nxc3 14. Qxc3 Nf5 15. Be3 Rb8 16. Bf4 g5 17. Bxf5 gxf4 18. Be4 Bg7 19. Rad1 Bd7 20. Qf3 Bb5 21. Bxb7 Qg5 22. b3 {0-1 (61) Gelfand,B (2743)-Wang,Y (2720) Beijing 2014}) 14. Qg3 {[%emt 0:00:11]} Bc6 {[%emt 0:00:12]} 15. Nxc6 {[%emt 0:00:22]} bxc6 {[%emt 0:00:06]} 16. Bxh6 {[%emt 0:00:06]} Qb6 {[%emt 0:00:14]} 17. Be3 {[%emt 0:01:27]} Qxb2 {[%emt 0:00:53]} 18. Na4 {[%emt 0:00:12]} Qa3 {[%emt 0:07:41]} 19. Nc5 {[%emt 0:00:55]} Rfd8 {[%emt 0:07:43]} 20. Rad1 {[%emt 0:55:25]} Nf5 {[%emt 0:08:32]} 21. Qf3 {[%emt 0:04:09]} Nde7 {[%emt 0:31:06]} 22. Bxc6 {[%emt 0:04:11]} Nxc6 {[%emt 0:02:43]} 23. Qxc6 {[%emt 0:00:02]} Rac8 {[%emt 0:00:50]} 24. Qb7 {[%emt 0:11:14]} Rb8 $11 {[%emt 0:06:14]} 25. Qc7 {[%emt 0:00:23]} Rbc8 {[%emt 0:03:47]} 26. Qb7 {[%emt 0:00:36]} Rb8 {[%emt 0:00:54]} 27. Qc7 {[%emt 0:02:39]} Rbc8 {[%emt 0:00:08]} 28. Qf4 {[%emt 0:10:31]} Qxa2 {[%emt 0:02:30]} 29. Ne4 {[%emt 0:00:20]} Bxd4 {[%emt 0:09:30]} 30. Bxd4 {[%emt 0:00:24]} Nxd4 {[%emt 0:00:12]} 31. Rxd4 {[%emt 0:03:03]} Rxd4 {[%emt 0:00:06]} 32. Nf6+ {[%emt 0:00:04]} gxf6 {[%emt 0:00:11]} 33. Qxd4 {[%emt 0:00:03]} Rb8 {[%emt 0:14:03]} 34. Qxf6 {[%emt 0:02:58]} Rb1 {[%emt 0:00:14]} 35. Qd8+ {[%emt 0:01:04]} Kg7 {[%emt 0:00:20]} 36. Qg5+ {[%emt 0:00:06]} Kf8 {[%emt 0:00:54]} 37. Qd8+ {[%emt 0:00:29]} Kg7 {[%emt 0:00:07]} 38. Qg5+ {[%emt 0:00:14]} Kf8 {[%emt 0:00:07]} 39. Qh6+ {[%emt 0:04:04]} Kg8 {[%emt 0:00:17]} 40. Qg5+ {[%emt 0:00:04]} 1/2-1/2